bitfinex/quotes_SOLUSD_20240818
["timestamp","ask_amount","ask_price","bid_price","bid_amount"]
[1723953836279,14.3528,141.62,141.53,9.41]
[1723953836488,14.3528,141.62,141.54,6.2734]
[1723953837565,0.12549,141.61,141.54,6.2734]
[1723953837893,45.25098,141.61,141.54,6.2734]
[1723953838572,30.6760664,141.66,141.55,41.47554429]
[1723953839266,24.3474664,141.66,141.55,41.47554429]
[1723953839790,0.8374664,141.66,141.55,40.0629]
[1723953840082,0.8374664,141.66,141.59,6.2734]
[1723953840287,0.8374664,141.66,141.6,1.41215963]
[1723953840466,0.8374664,141.66,141.59,6.2734]
[1723953840869,5.7788664,141.66,141.59,6.2734]
[1723953841067,0.8374664,141.66,141.6,16.5529]
[1723953841702,0.8374664,141.66,141.61,20.0]
[1723953842163,23.51,141.65,141.6,16.5529]
[1723953842365,0.8374664,141.66,141.6,16.5529]
[1723953842366,28.4527,141.63,141.6,16.5529]
[1723953842578,4.9428,141.62,141.56,22.8263]
[1723953842891,23.51,141.63,141.56,22.8263]
[1723953843063,45.50196,141.62,141.56,22.8263]
[1723953843261,0.12549,141.6,141.56,16.5529]
[1723953843481,45.50196,141.6,141.56,16.5529]
[1723953844895,50.44546,141.6,141.56,16.5529]
[1723953845699,23.51,141.59,141.53,16.522]
[1723953845878,45.37647,141.58,141.53,16.522]
[1723953846279,50.32067,141.58,141.53,16.522]
[1723953847573,45.0,141.58,141.53,16.522]
[1723953848601,23.51,141.61,141.53,16.522]
[1723953848994,4.9437,141.6,141.53,16.522]
[1723953850093,45.0,141.59,141.53,16.522]
[1723953850979,49.9438,141.59,141.53,16.522]
[1723953852471,4.9423,141.64,141.53,16.522]
[1723953852671,23.51,141.63,141.53,16.522]
[1723953853487,4.9438,141.6,141.53,16.522]
[1723953853745,45.0,141.59,141.53,16.522]
[1723953854382,49.9438,141.59,141.53,16.522]
[1723953854584,45.0,141.59,141.53,16.522]
[1723953854808,23.51,141.63,141.53,16.522]
[1723953854996,0.12549,141.61,141.53,16.522]
[1723953857617,5.06859,141.61,141.53,16.522]
[1723953857805,42.90317116,141.68,141.53,16.522]
[1723953858008,42.90317116,141.68,141.52,29.7834]
[1723953858009,4.9417,141.65,141.55,16.522]
[1723953858316,4.9417,141.65,141.56,20.0]
[1723953859288,0.12549,141.64,141.56,20.0]
[1723953860593,5.06759,141.64,141.56,20.0]
[1723953860806,45.37647,141.63,141.56,20.0]
[1723953860988,45.12549,141.63,141.56,20.0]
[1723953861187,49.9424,141.63,141.55,16.522]
[1723953861614,45.0,141.63,141.55,16.522]
[1723953862705,45.0,141.63,141.56,26.0179]
[1723953863418,0.12549,141.65,141.57,1.4123134]
[1723953863730,50.44366,141.65,141.56,26.0179]
[1723953864420,50.44366,141.65,141.57,16.522]
[1723953864601,50.19268,141.65,141.57,16.522]
[1723953864805,0.8374664,141.66,141.57,16.522]
[1723953865296,0.8374664,141.66,141.58,20.0]
[1723953867720,0.8374664,141.66,141.59,15.5698]
[1723953867922,0.8374664,141.66,141.6,24.92206255]
[1723953868126,0.8374664,141.66,141.62,15.5698]
[1723953868822,0.8374664,141.66,141.62,16.98180392]
[1723953869024,0.8374664,141.66,141.62,15.5698]
[1723953869911,0.8374664,141.66,141.62,16.98174459]
[1723953870420,0.8374664,141.66,141.62,15.5698]
[1723953870626,0.8374664,141.66,141.63,1.41185691]
[1723953870923,0.8374664,141.66,141.62,15.5698]
[1723953871815,0.8374664,141.66,141.63,1.41181665]
[1723953872126,0.8374664,141.66,141.62,15.5698]
[1723953872322,0.8374664,141.66,141.63,1.41181817]
[1723953872622,0.8374664,141.66,141.62,15.5698]
[1723953873420,0.8374664,141.66,141.63,20.12549]
[1723953873906,4.9386,141.74,141.65,6.4084]
[1723953875306,45.0,141.73,141.65,6.4084]
[1723953875513,4.9386,141.74,141.65,6.4084]
[1723953875731,4.939,141.73,141.65,6.4084]
[1723953876800,45.0,141.72,141.65,6.4084]
[1723953877205,5.31507,141.74,141.65,6.4084]
[1723953877406,45.0,141.73,141.65,6.4084]
[1723953877826,0.12549,141.7,141.64,15.5698]
[1723953878038,50.31647,141.7,141.64,15.5698]
[1723953878210,23.51,141.71,141.64,15.5698]
[1723953878420,0.12549,141.72,141.64,15.5698]
[1723953878603,45.12549,141.72,141.64,15.5698]
[1723953883324,5.06509,141.71,141.64,15.5698]
[1723953883526,45.12549,141.7,141.64,15.5698]
[1723953883918,59.45559,141.7,141.64,15.5698]
[1723953887148,54.51549,141.7,141.64,15.5698]
[1723953887637,45.0,141.7,141.64,15.5698]
[1723953892670,4.9393,141.73,141.64,15.5698]
[1723953892961,4.9386,141.74,141.65,10.80143797]
[1723953893123,4.9386,141.74,141.65,9.39]
[1723953894142,14.3283,141.75,141.65,9.39]
[1723953895536,14.3283,141.75,141.66,15.8813]
[1723953895855,45.0,141.74,141.66,15.8813]
[1723953896057,49.9386,141.74,141.66,15.8813]
[1723953896658,0.12549,141.73,141.66,15.8813]
[1723953896864,14.57998,141.73,141.66,15.8813]
[1723953897160,45.0,141.72,141.66,15.8813]
[1723953900962,9.39,141.71,141.66,15.8813]
[1723953901133,14.3297,141.71,141.66,15.8813]
[1723953901338,45.0,141.7,141.66,15.8813]
[1723953902348,49.9401,141.7,141.66,15.8813]
[1723953902549,5.06629,141.68,141.62,22.2897]
[1723953902749,49.941,141.67,141.62,15.8813]
[1723953902960,0.25098,141.66,141.62,15.8813]
[1723953903171,59.3311,141.67,141.62,15.8813]
[1723953904263,28.3235,141.73,141.62,15.8813]
[1723953904443,0.12549,141.7,141.62,25.2713]
[1723953904644,50.44216,141.7,141.62,25.2713]
[1723953906064,50.44216,141.7,141.62,15.8813]
[1723953907860,50.44216,141.7,141.63,1.4118113]
[1723953908162,50.44216,141.7,141.62,15.8813]
[1723953911567,45.50196,141.7,141.62,15.8813]
[1723953911761,45.50196,141.7,141.63,1.41182317]
[1723953912273,50.44196,141.7,141.62,15.8813]
[1723953912458,50.44196,141.7,141.63,1.41183243]
[1723953912766,50.44196,141.7,141.62,15.8813]
[1723953913148,50.44196,141.7,141.62,22.12548573]
[1723953913356,50.44196,141.7,141.62,15.8813]
[1723953913553,50.44196,141.7,141.62,22.12548573]
[1723953913754,50.44196,141.7,141.62,15.8813]
[1723953913955,50.44196,141.7,141.62,22.12548573]
[1723953914153,50.44196,141.7,141.62,15.8813]
[1723953914353,45.50196,141.7,141.62,22.12548573]
[1723953914545,45.12549,141.7,141.63,6.24418573]
[1723953914765,45.0,141.7,141.63,6.24418573]
[1723953914948,45.0,141.7,141.63,6.24387237]
[1723953916453,45.0,141.7,141.64,6.24387237]
[1723953916654,45.12549,141.71,141.63,6.24387237]
[1723953916967,4.9389,141.73,141.66,16.5441]
[1723953917170,4.9389,141.73,141.67,1.41152171]
[1723953917379,4.9389,141.73,141.66,22.78797237]
[1723953917548,4.9389,141.73,141.66,16.5441]
[1723953917753,4.9389,141.73,141.66,22.78797237]
[1723953918063,4.9386,141.74,141.66,22.78797237]
[1723953918266,4.9386,141.74,141.67,1.41143918]
[1723953918466,4.9386,141.74,141.68,1.41139846]
[1723953919574,45.25098,141.73,141.67,1.41142703]
[1723953920454,50.18998,141.73,141.66,22.78663383]
[1723953920971,0.12549,141.71,141.66,16.5441]
[1723953921149,0.37647,141.71,141.66,16.5441]
[1723953921469,0.12549,141.7,141.66,16.5441]
[1723953921671,0.25098,141.7,141.66,16.5441]
[1723953921984,50.31647,141.7,141.66,16.5441]
[1723953922352,0.12549,141.69,141.66,16.5441]
[1723953922560,28.67128,141.69,141.66,16.5441]
[1723953922759,45.0,141.68,141.62,16.5441]
[1723953922982,45.0,141.68,141.62,22.78855307]
[1723953923970,49.9407,141.68,141.62,16.5441]
[1723953924149,0.12549,141.67,141.62,16.5441]
[1723953924359,0.50196,141.67,141.62,16.5441]
[1723953930380,2.06770955,141.8,141.63,1.41213069]
[1723953930381,12.28063685,141.79,141.63,1.41213069]
[1723953930559,12.28063685,141.79,141.62,16.5441]
[1723953930560,9.4,141.71,141.62,16.5441]
[1723953930753,6.074,141.73,141.62,16.5441]
[1723953930955,9.4,141.72,141.62,22.78910706]
[1723953931864,4.9396,141.71,141.62,22.78910706]
[1723953932381,0.12549,141.7,141.62,22.78910706]
[1723953932559,45.50196,141.7,141.62,22.78910706]
[1723953934577,45.50196,141.7,141.62,22.78841672]
[1723953935184,9.4,141.72,141.63,30.81175491]
[1723953935559,9.4,141.72,141.64,21.97707165]
[1723953935759,9.4,141.72,141.65,1.41158999]
[1723953936079,9.4,141.72,141.64,15.7336]
[1723953936581,0.12549,141.72,141.64,21.97707165]
[1723953936766,45.37647,141.72,141.65,1.41168408]
[1723953937086,45.25098,141.72,141.64,21.97707165]
[1723953937269,4.9386,141.74,141.66,6.5475]
[1723953937587,4.9386,141.74,141.67,17.14503211]
[1723953937787,4.9386,141.74,141.68,1.41142124]
[1723953938160,4.9386,141.74,141.67,15.7336]
[1723953938576,0.12549,141.73,141.67,15.7336]
[1723953938774,45.25098,141.73,141.67,15.7336]
[1723953939787,59.58998,141.73,141.67,15.7336]
[1723953940197,45.25098,141.73,141.67,15.7336]
[1723953940886,0.25098,141.73,141.67,15.7336]
[1723953942489,50.06409,141.74,141.67,15.7336]
[1723953942686,45.0,141.74,141.67,15.7336]
[1723953942992,45.0,141.74,141.68,1.41141301]
[1723953943167,45.0,141.74,141.67,15.7336]
[1723953943564,45.0,141.74,141.68,1.41138293]
[1723953943761,45.0,141.74,141.67,15.7336]
[1723953945270,9.4,141.76,141.68,9.4]
[1723953945989,9.4,141.76,141.67,15.7336]
[1723953945990,14.3379,141.76,141.67,15.7336]
[1723953946365,4.9379,141.76,141.67,15.7336]
[1723953946568,0.12549,141.75,141.67,15.7336]
[1723953946783,45.50196,141.75,141.67,15.7336]
[1723953946987,50.44026,141.75,141.67,15.7336]
[1723953947176,0.12549,141.73,141.67,15.7336]
[1723953947498,45.12549,141.73,141.67,15.7336]
[1723953947993,45.0,141.73,141.67,15.7336]
[1723953948293,45.0,141.74,141.67,15.7336]
[1723953949495,45.0,141.74,141.68,1.41137299]
[1723953949672,45.0,141.74,141.67,15.7336]
[1723953950065,19.7652664,141.8,141.67,25.1336]
[1723953950294,9.4,141.77,141.68,16.472]
[1723953950681,14.3378,141.77,141.68,16.472]
[1723953950882,4.9379,141.76,141.68,16.472]
[1723953951102,4.9379,141.76,141.69,1.41120754]
[1723953951469,4.9379,141.76,141.68,16.472]
[1723953951690,45.0,141.75,141.68,16.472]
[1723953951968,54.4,141.75,141.68,16.472]
[1723953952784,4.9379,141.76,141.68,16.472]
[1723953953305,45.25098,141.75,141.68,16.472]
[1723953953481,54.65098,141.75,141.68,16.472]
[1723953954980,0.12549,141.76,141.68,16.472]
[1723953955195,14.3376,141.77,141.68,16.472]
[1723953955506,14.3376,141.77,141.69,9.4]
[1723953955693,14.3371,141.79,141.7,15.8519]
[1723953955873,14.3371,141.79,141.71,7.70841975]
[1723953956400,0.8374664,141.8,141.71,7.70841975]
[1723953956401,5.7741664,141.8,141.71,7.70841975]
[1723953956581,5.7741664,141.8,141.72,17.26270629]
[1723953957674,5.7741664,141.8,141.72,15.8519]
[1723953958092,0.8374664,141.8,141.73,10.81073397]
[1723953958402,0.8374664,141.8,141.74,1.41067068]
[1723953959892,0.8374664,141.8,141.73,9.4]
[1723953960579,0.8374664,141.8,141.72,15.8519]
[1723953960983,9.52549,141.79,141.72,15.8519]
[1723953961186,9.52549,141.77,141.72,15.8519]
[1723953961403,45.0,141.76,141.72,15.8519]
[1723953961898,9.23586781,141.75,141.72,15.8519]
[1723953962207,45.0,141.74,141.72,15.8519]
[1723953962527,45.0,141.74,141.68,6.2974]
[1723953962528,9.65098,141.73,141.69,15.8519]
[1723953962716,45.0,141.72,141.69,15.8519]
[1723953963209,9.4,141.73,141.69,15.8519]
[1723953963781,45.0,141.72,141.69,15.8519]
[1723953963988,5.18958,141.74,141.69,15.8519]
[1723953964289,45.0,141.73,141.69,15.8519]
[1723953964493,0.25098,141.74,141.69,15.8519]
[1723953964685,45.25098,141.74,141.69,15.8519]
[1723953964908,0.12549,141.72,141.65,16.0784]
[1723953965082,23.47,141.71,141.65,16.0784]
[1723953965288,45.0,141.7,141.65,16.0784]
[1723953968095,5.19028,141.72,141.65,16.0784]
[1723953968394,45.0,141.71,141.65,16.0784]
[1723953970900,0.25098,141.7,141.65,16.0784]
[1723953971106,45.0,141.71,141.65,16.0784]
[1723953973219,0.37647,141.7,141.65,16.0784]
[1723953973424,5.31647,141.7,141.65,16.0784]
[1723953973720,45.0,141.69,141.65,16.0784]
[1723953976014,0.12549,141.72,141.65,16.0784]
[1723953976199,45.37647,141.72,141.66,1.41182106]
[1723953976800,50.31577,141.72,141.66,1.41182106]
[1723953977737,1.23057012,141.77,141.65,39.5484]
[1723953977899,29.6361,141.78,141.67,1.41158277]
[1723953978099,29.6361,141.78,141.68,1.41134474]
[1723953978297,4.9383,141.75,141.68,1.41134474]
[1723953978511,4.9383,141.75,141.66,20.0]
[1723953979102,4.9383,141.75,141.67,1.41133397]
[1723953979302,4.9383,141.75,141.68,1.41132964]
[1723953979726,28.4079,141.76,141.69,16.0784]
[1723953979924,4.9379,141.76,141.69,16.0784]
[1723953980225,4.9379,141.76,141.7,1.41117119]
[1723953980930,4.9379,141.76,141.69,22.4243]
[1723953981314,45.0,141.75,141.69,22.4243]
[1723953981742,45.0,141.75,141.7,1.4111745]
[1723953981907,45.0,141.76,141.7,1.4111745]
[1723953982104,45.0,141.76,141.69,22.4243]
[1723953983536,0.50196,141.75,141.69,16.0784]
[1723953983702,5.06449,141.73,141.69,16.0784]
[1723953983905,0.37647,141.75,141.69,16.0784]
[1723953983906,9.51549,141.71,141.69,16.0784]
[1723953984201,45.0,141.7,141.69,16.0784]
[1723953988020,0.12549,141.72,141.69,16.0784]
[1723953988220,23.48,141.75,141.69,16.0784]
[1723953988422,4.9382,141.76,141.69,16.0784]
[1723953988818,24.9382,141.76,141.69,16.0784]
[1723953989715,0.12549,141.74,141.69,16.0784]
[1723953990138,4.9382,141.76,141.69,16.0784]
[1723953991439,4.9376,141.77,141.69,16.0784]
[1723953991739,45.37647,141.76,141.69,16.0784]
[1723953993428,45.0,141.76,141.7,1.41120519]
[1723953993735,45.0,141.76,141.71,8.00836893]
[1723953993942,45.12549,141.77,141.71,8.00836893]
[1723953994819,4.9369,141.79,141.72,1.41107354]
[1723953995837,5.7739664,141.8,141.73,15.0802]
[1723953996345,5.7739664,141.8,141.74,1.41086249]
[1723953997114,45.25098,141.79,141.74,1.41086249]
[1723953997333,45.25098,141.79,141.73,15.0802]
[1723953999126,50.18788,141.79,141.73,15.0802]
[1723954001147,4.9372,141.78,141.73,15.0802]
[1723954001322,45.37647,141.77,141.73,15.0802]
[1723954002319,50.31407,141.77,141.73,15.0802]
[1723954002847,45.25098,141.77,141.73,15.0802]
[1723954012643,9.38,141.76,141.73,15.0802]
[1723954012844,9.38,141.74,141.68,15.8837]
[1723954013155,0.12549,141.73,141.68,15.8837]
[1723954013331,45.12549,141.73,141.68,15.8837]
[1723954014857,45.12549,141.74,141.68,15.8837]
[1723954016963,0.12549,141.73,141.68,15.8837]
[1723954017751,45.12549,141.74,141.68,15.8837]
[1723954018052,45.0,141.74,141.68,15.8837]
[1723954018355,9.38,141.75,141.68,15.8837]
[1723954018550,18.6752,141.79,141.68,25.2637]
[1723954018551,9.38,141.77,141.68,25.2637]
[1723954018883,14.3176,141.77,141.68,25.2637]
[1723954019227,9.38,141.77,141.68,25.2637]
[1723954019743,45.25098,141.76,141.68,25.2637]
[1723954021534,45.25098,141.76,141.69,1.41119206]
[1723954021932,45.25098,141.76,141.7,1.41119285]
[1723954022247,0.12549,141.77,141.71,1.41118953]
[1723954022432,9.38,141.78,141.72,16.2624]
[1723954024067,14.3172,141.78,141.72,16.2624]
[1723954024276,45.12549,141.77,141.72,16.2624]
[1723954024778,45.0,141.77,141.72,16.2624]
[1723954025871,0.12549,141.79,141.72,22.5946]
[1723954026161,45.12549,141.79,141.72,22.5946]
[1723954026400,45.25098,141.79,141.72,22.5946]
[1723954027164,0.8374664,141.8,141.73,1.41093335]
[1723954027338,0.8374664,141.8,141.74,1.41067294]
[1723954027540,0.8374664,141.8,141.75,15.3533]
[1723954033159,0.8374664,141.8,141.76,20.0]
[1723954033588,0.8374664,141.8,141.76,29.38]
[1723954033790,0.8374664,141.8,141.77,6.3322]
[1723954042304,0.8374664,141.8,141.78,1.41032141]
[1723954042491,9.38,141.88,141.79,16.76352322]
[1723954042673,9.38,141.88,141.8,1.41001713]
[1723954042998,9.38,141.88,141.8,10.79001713]
[1723954043786,9.38,141.88,141.8,9.38]
[1723954043982,15.7368,141.91,141.81,1.41001233]
[1723954043983,15.6702,141.91,141.81,1.41001233]
[1723954044184,9.38,141.89,141.8,9.38]
[1723954044370,45.12549,141.88,141.8,9.38]
[1723954045078,15.6702,141.91,141.8,9.38]
[1723954045286,9.38,141.9,141.8,9.38]
[1723954045492,9.38,141.88,141.81,20.0]
[1723954045806,14.314,141.88,141.79,15.3533]
[1723954045975,4.934,141.88,141.8,20.0]
[1723954046175,14.314,141.88,141.8,20.0]
[1723954046589,50.18508,141.87,141.79,15.3533]
[1723954046790,9.38,141.84,141.79,15.3533]
[1723954047993,0.12549,141.85,141.79,15.3533]
[1723954047994,9.38,141.82,141.79,15.3533]
[1723954049810,9.50549,141.85,141.79,15.3533]
[1723954049991,45.0,141.84,141.79,15.3533]
[1723954050808,0.37647,141.86,141.79,15.3533]
[1723954051011,0.37647,141.86,141.8,1.41018983]
[1723954051012,0.25098,141.86,141.8,1.41018983]
[1723954051604,14.3141,141.87,141.79,15.3533]
[1723954051778,9.38,141.87,141.8,1.41008813]
[1723954051982,9.38,141.87,141.79,15.3533]
[1723954052181,4.9337,141.88,141.79,15.3533]
[1723954052592,14.3137,141.88,141.79,15.3533]
[1723954052791,45.12549,141.87,141.79,15.3533]
[1723954053389,50.05959,141.87,141.79,15.3533]
[1723954053594,0.12549,141.85,141.79,15.3533]
[1723954053921,45.25098,141.85,141.79,15.3533]
[1723954054093,45.12549,141.85,141.79,15.3533]
[1723954054614,0.12549,141.85,141.79,15.3533]
[1723954054920,9.63098,141.85,141.79,15.3533]
[1723954055091,14.56598,141.85,141.79,15.3533]
[1723954055288,45.0,141.84,141.79,15.3533]
[1723954055593,9.38,141.83,141.79,15.3533]
[1723954055791,14.3155,141.83,141.79,15.3533]
[1723954056098,45.0,141.82,141.79,15.3533]
[1723954056502,9.38,141.83,141.79,15.3533]
[1723954056810,9.38,141.84,141.79,15.3533]
[1723954059911,9.38,141.82,141.79,15.3533]
[1723954060687,0.12549,141.83,141.79,15.3533]
[1723954060909,45.25098,141.83,141.79,15.3533]
[1723954063090,50.18638,141.83,141.79,15.3533]
[1723954063393,9.38,141.82,141.79,15.3533]
[1723954064795,45.25098,141.83,141.79,15.3533]
[1723954064993,54.63098,141.83,141.79,15.3533]
[1723954066022,4.9341,141.87,141.79,15.3533]
[1723954066324,14.3138,141.88,141.8,21.41006213]
[1723954067026,9.38,141.88,141.8,20.0]
[1723954068224,45.0,141.87,141.8,20.0]
[1723954069928,0.12549,141.86,141.79,24.7333]
[1723954070102,0.25098,141.86,141.79,15.3533]
[1723954071921,14.56548,141.86,141.79,15.3533]
[1723954072105,45.0,141.85,141.79,15.3533]
[1723954073522,45.0,141.85,141.8,1.41021408]
[1723954073723,9.63098,141.86,141.79,15.3533]
[1723954075317,9.63098,141.86,141.79,21.59046163]
[1723954075520,9.63098,141.86,141.79,15.3533]
[1723954075703,9.63098,141.86,141.79,21.59046163]
[1723954075909,9.63098,141.86,141.79,15.3533]
[1723954076125,9.63098,141.86,141.79,21.59046163]
[1723954076328,9.63098,141.86,141.79,15.3533]
[1723954076632,9.63098,141.86,141.79,21.59046163]
[1723954076633,9.50549,141.86,141.79,21.59046163]
[1723954076931,9.50549,141.86,141.79,15.3533]
[1723954077228,9.50549,141.86,141.79,21.59046163]
[1723954077409,9.50549,141.86,141.79,15.3533]
[1723954077609,9.50549,141.86,141.79,21.59046163]
[1723954077828,9.50549,141.86,141.79,15.3533]
[1723954078127,9.50549,141.86,141.79,21.59046163]
[1723954078311,9.50549,141.86,141.79,15.3533]
[1723954078516,9.50549,141.86,141.79,21.59046163]
[1723954078736,9.50549,141.86,141.79,15.3533]
[1723954081202,0.12549,141.86,141.79,15.3533]
[1723954081403,45.25098,141.86,141.79,15.3533]
[1723954083026,45.25098,141.86,141.8,6.2368995]
[1723954083234,45.25098,141.86,141.79,15.3533]
[1723954083822,45.25098,141.86,141.8,1.41018345]
[1723954084214,45.25098,141.86,141.79,15.3533]
[1723954085308,0.12549,141.84,141.79,15.3533]
[1723954085512,0.25098,141.84,141.79,15.3533]
[1723954085710,45.25098,141.84,141.79,15.3533]
[1723954086217,0.12549,141.82,141.79,15.3533]
[1723954086412,9.38,141.81,141.79,15.3533]
[1723954087333,5.18688,141.82,141.79,15.3533]
[1723954087531,45.0,141.81,141.79,15.3533]
[1723954088939,45.25098,141.82,141.79,15.3533]
[1723954089942,9.38,141.83,141.79,15.3533]
[1723954091342,45.0,141.82,141.79,15.3533]
[1723954093738,54.38,141.83,141.79,15.3533]
[1723954094338,0.12549,141.82,141.79,15.3533]
[1723954094542,4.9369,141.79,141.75,21.7120133]
[1723954094840,45.25098,141.78,141.75,21.71300914]
[1723954095152,45.25098,141.78,141.71,6.339]
[1723954095153,45.25098,141.78,141.72,22.53160914]
[1723954095349,45.25098,141.78,141.73,6.23910914]
[1723954095641,9.38,141.77,141.74,6.23910914]
[1723954095937,9.38,141.77,141.73,6.23910914]
[1723954096135,9.38,141.77,141.74,6.23910914]
[1723954096349,45.12549,141.76,141.72,22.53160914]
[1723954096640,45.12549,141.76,141.69,22.53160914]
[1723954096641,0.12549,141.74,141.69,22.53160914]
[1723954096851,45.12549,141.74,141.7,6.23910914]
[1723954097034,45.12549,141.74,141.71,6.23910914]
[1723954097232,45.12549,141.74,141.7,6.23910914]
[1723954097435,45.12549,141.74,141.71,6.24057706]
[1723954097650,45.12549,141.74,141.7,6.24057706]
[1723954097952,45.12549,141.74,141.71,6.24057706]
[1723954098250,6.58,141.81,141.7,6.24057706]
[1723954098446,9.38,141.79,141.71,6.24057706]
[1723954098643,9.38,141.79,141.72,6.24057706]
[1723954098834,4.9365,141.8,141.71,6.24057706]
[1723954099029,9.38,141.79,141.72,6.24057706]
[1723954099228,9.38,141.79,141.71,6.24057706]
[1723954099434,4.9365,141.8,141.72,6.24057706]
[1723954099626,54.63098,141.79,141.71,6.24057706]
[1723954099837,54.63098,141.79,141.72,6.24057706]
[1723954100034,54.63098,141.79,141.71,6.24057706]
[1723954100231,54.63098,141.79,141.72,6.24057706]
[1723954100553,0.12549,141.78,141.71,6.24057706]
[1723954100744,0.12549,141.78,141.72,6.24057706]
[1723954101055,0.12549,141.78,141.71,6.24057706]
[1723954101248,0.12549,141.78,141.71,6.23962127]
[1723954101547,0.12549,141.78,141.72,6.23962127]
[1723954101735,0.12549,141.78,141.7,9.38]
[1723954101736,9.38,141.79,141.71,6.2393605]
[1723954102052,9.38,141.79,141.72,6.2393605]
[1723954102339,9.38,141.8,141.71,6.2393605]
[1723954102541,9.38,141.8,141.72,6.2393605]
[1723954102725,9.38,141.8,141.71,6.2393605]
[1723954102919,9.38,141.8,141.72,6.2393605]
[1723954103129,9.38,141.8,141.71,6.2393605]
[1723954103837,9.50549,141.8,141.72,6.2393605]
[1723954104152,9.50549,141.8,141.7,9.50549]
[1723954104153,9.50549,141.8,141.71,6.2393605]
[1723954104340,9.50549,141.8,141.73,16.2925]
[1723954104525,0.25098,141.81,141.73,16.2925]
[1723954104726,0.25098,141.8,141.73,16.2925]
[1723954105335,45.0,141.81,141.74,1.41077163]
[1723954106032,45.0,141.81,141.73,16.2925]
[1723954106238,9.75647,141.8,141.73,16.2925]
[1723954106553,45.0,141.79,141.73,16.2925]
[1723954107047,0.37647,141.8,141.73,16.2925]
[1723954107048,45.37647,141.8,141.73,16.2925]
[1723954107255,45.37647,141.8,141.73,17.70336837]
[1723954107751,45.37647,141.8,141.73,16.2925]
[1723954108525,45.0,141.8,141.73,16.2925]
[1723954108854,22.6509,141.85,141.74,29.38]
[1723954109029,9.38,141.84,141.74,29.38]
[1723954109953,14.3151,141.84,141.74,29.38]
[1723954110561,0.12549,141.83,141.74,29.38]
[1723954111057,9.38,141.82,141.74,29.38]
[1723954111356,9.38,141.82,141.74,20.0]
[1723954111735,45.0,141.81,141.74,20.0]
[1723954112755,45.0,141.81,141.73,16.2925]
[1723954112944,9.50549,141.8,141.73,16.2925]
[1723954113136,45.0,141.79,141.73,16.2925]
[1723954113657,9.50549,141.78,141.73,16.2925]
[1723954113830,45.0,141.77,141.73,16.2925]
[1723954115839,0.12549,141.76,141.7,15.3842]
[1723954116044,0.25098,141.76,141.71,20.0]
[1723954116470,9.63098,141.76,141.7,21.62329493]
[1723954116665,9.38,141.74,141.7,15.3842]
[1723954118336,9.38,141.74,141.66,29.00470242]
[1723954118337,45.0,141.73,141.66,29.00470242]
[1723954118536,45.0,141.73,141.66,21.62507149]
[1723954118758,45.0,141.73,141.67,6.24087149]
[1723954119360,45.0,141.73,141.66,21.62507149]
[1723954119953,9.88196,141.72,141.66,21.62507149]
[1723954120151,14.44549,141.7,141.63,6.24087149]
[1723954120453,0.37647,141.69,141.62,21.62507149]
[1723954120653,0.12549,141.68,141.62,21.62507149]
[1723954120855,0.12549,141.68,141.63,6.24087149]
[1723954121055,0.12549,141.68,141.62,21.62677003]
[1723954121366,0.12549,141.68,141.62,15.3842]
[1723954121662,0.12549,141.68,141.63,20.0]
[1723954122055,9.50549,141.68,141.62,15.3842]
[1723954122370,45.37647,141.67,141.62,15.3842]
[1723954124058,0.12549,141.66,141.58,22.76486603]